[Event "*** Titled Tuesday Blitz"]
[Site "Chess.com"]
[Date "2021.04.20"]
[Round "10"]
[White "Manukyan_Artak"]
[Black "TheRealPeakyBlinder"]
[Result "0-1"]
[WhiteElo "2439"]
[BlackElo "2656"]
[TimeControl "180+1"]
[EndTime "11:56:43 PDT"]
[Termination "TheRealPeakyBlinder won on time"]

1. e4 {[%clk 0:03:00.9]} 1... e6 {[%clk 0:02:57.5]} 2. d4 {[%clk 0:03:00.7]}
2... d5 {[%clk 0:02:57.5]} 3. e5 {[%clk 0:03:01.3]} 3... c5 {[%clk 0:02:56.4]}
4. c3 {[%clk 0:03:01.9]} 4... Nc6 {[%clk 0:02:56.6]} 5. Nf3 {[%clk 0:03:02.5]}
5... Bd7 {[%clk 0:02:55.3]} 6. a3 {[%clk 0:03:02.9]} 6... c4 {[%clk 0:02:52.7]}
7. Nbd2 {[%clk 0:03:01.5]} 7... Qb6 {[%clk 0:02:47.4]} 8. b4 {[%clk 0:02:48]}
8... cxb3 {[%clk 0:02:47.2]} 9. Nxb3 {[%clk 0:02:47.6]} 9... Na5 {[%clk
0:02:46.2]} 10. Nxa5 {[%clk 0:02:47.7]} 10... Qxa5 {[%clk 0:02:46.5]} 11. Bd2
{[%clk 0:02:48.3]} 11... Qa4 {[%clk 0:02:45.9]} 12. Qb1 {[%clk 0:02:48.3]} 12...
Bc6 {[%clk 0:02:44.5]} 13. Bd3 {[%clk 0:02:42.6]} 13... Nh6 {[%clk 0:02:41]} 14.
O-O {[%clk 0:02:41.1]} 14... g6 {[%clk 0:02:40.1]} 15. Ra2 {[%clk 0:02:03.5]}
15... Nf5 {[%clk 0:02:38.8]} 16. Bc2 {[%clk 0:01:31.4]} 16... Qa5 {[%clk
0:02:29.5]} 17. c4 {[%clk 0:01:31.1]} 17... Qd8 {[%clk 0:02:26.7]} 18. Bg5
{[%clk 0:01:19.6]} 18... Be7 {[%clk 0:02:25.9]} 19. Bxe7 {[%clk 0:01:19.4]}
19... Qxe7 {[%clk 0:02:26.8]} 20. c5 {[%clk 0:01:19.8]} 20... O-O {[%clk
0:02:17.1]} 21. Bxf5 {[%clk 0:01:04.2]} 21... gxf5 {[%clk 0:02:13.4]} 22. Qc1
{[%clk 0:00:52.7]} 22... Kh8 {[%clk 0:02:13.4]} 23. Qh6 {[%clk 0:00:41.8]} 23...
Rg8 {[%clk 0:02:12.2]} 24. Qf6+ {[%clk 0:00:29.8]} 24... Qxf6 {[%clk 0:02:07.2]}
25. exf6 {[%clk 0:00:30.7]} 25... Rg6 {[%clk 0:02:08]} 26. Ne5 {[%clk
0:00:29.5]} 26... Rxf6 {[%clk 0:02:08.4]} 27. Rb1 {[%clk 0:00:24.8]} 27... f4
{[%clk 0:02:03.1]} 28. Rab2 {[%clk 0:00:20.5]} 28... f3 {[%clk 0:01:22.7]} 29.
g3 {[%clk 0:00:18.6]} 29... Kg7 {[%clk 0:01:17.5]} 30. Nxc6 {[%clk 0:00:17]}
30... bxc6 {[%clk 0:01:16.4]} 31. Rb8 {[%clk 0:00:17.9]} 31... Rxb8 {[%clk
0:01:16.2]} 32. Rxb8 {[%clk 0:00:18.8]} 32... e5 {[%clk 0:01:16.6]} 33. dxe5
{[%clk 0:00:13.6]} 33... Re6 {[%clk 0:01:17]} 34. h3 {[%clk 0:00:09.9]} 34...
Rxe5 {[%clk 0:01:17.3]} 35. Rc8 {[%clk 0:00:10.3]} 35... Re1+ {[%clk 0:01:09]}
36. Kh2 {[%clk 0:00:09.9]} 36... Rf1 {[%clk 0:01:09.9]} 37. g4 {[%clk
0:00:09.4]} 37... Rxf2+ {[%clk 0:00:58.7]} 38. Kg3 {[%clk 0:00:09.6]} 38... Ra2
{[%clk 0:00:58.4]} 39. Kxf3 {[%clk 0:00:06.8]} 39... Rxa3+ {[%clk 0:00:58.8]}
40. Kf4 {[%clk 0:00:07.2]} 40... d4 {[%clk 0:00:42.3]} 41. Rxc6 {[%clk
0:00:06.4]} 41... Rxh3 {[%clk 0:00:41.1]} 42. Rd6 {[%clk 0:00:05.8]} 42... Rc3
{[%clk 0:00:40.2]} 43. c6 {[%clk 0:00:05.7]} 43... d3 {[%clk 0:00:40.6]} 44. Ke3
{[%clk 0:00:05.3]} 44... Kf8 {[%clk 0:00:36.8]} 45. Kd2 {[%clk 0:00:04.7]} 45...
Rc5 {[%clk 0:00:32.9]} 46. Kxd3 {[%clk 0:00:05]} 46... Ke7 {[%clk 0:00:33]} 47.
Rd7+ {[%clk 0:00:05.3]} 47... Ke6 {[%clk 0:00:33.6]} 48. Rxa7 {[%clk 0:00:03.8]}
48... Rxc6 {[%clk 0:00:33.8]} 49. Ke4 {[%clk 0:00:04.3]} 49... Rc4+ {[%clk
0:00:31.4]} 50. Kf3 {[%clk 0:00:04.4]} 50... Kf6 {[%clk 0:00:31.2]} 51. Ra5
{[%clk 0:00:04.3]} 51... Kg6 {[%clk 0:00:31]} 52. Kg3 {[%clk 0:00:04.4]} 52...
f6 {[%clk 0:00:31.3]} 53. Rf5 {[%clk 0:00:03.9]} 53... Rc3+ {[%clk 0:00:30]} 54.
Kh4 {[%clk 0:00:04.2]} 54... Re3 {[%clk 0:00:26.2]} 55. Rd5 {[%clk 0:00:03.8]}
55... Re7 {[%clk 0:00:24]} 56. Kg3 {[%clk 0:00:02.9]} 56... Rg7 {[%clk
0:00:23.9]} 57. Kf4 {[%clk 0:00:02.9]} 57... Ra7 {[%clk 0:00:23.6]} 58. Rc5
{[%clk 0:00:03.3]} 58... Ra4+ {[%clk 0:00:22.9]} 59. Kg3 {[%clk 0:00:03.8]}
59... Re4 {[%clk 0:00:22.3]} 60. Rf5 {[%clk 0:00:03.6]} 60... Re5 {[%clk
0:00:22]} 61. Rf4 {[%clk 0:00:03.8]} 61... Kg5 {[%clk 0:00:22.1]} 62. Rf3 {[%clk
0:00:04.1]} 62... h6 {[%clk 0:00:19.6]} 63. Kh3 {[%clk 0:00:04.1]} 63... Rb5
{[%clk 0:00:17]} 64. Kg3 {[%clk 0:00:04.4]} 64... Kg6 {[%clk 0:00:17.2]} 65. Kh3
{[%clk 0:00:04.1]} 65... Kf7 {[%clk 0:00:17.4]} 66. Kg3 {[%clk 0:00:04.4]} 66...
Ke6 {[%clk 0:00:17.8]} 67. Re3+ {[%clk 0:00:04.8]} 67... Re5 {[%clk 0:00:18]}
68. Rf3 {[%clk 0:00:04.8]} 68... Rg5 {[%clk 0:00:16.9]} 69. Kh4 {[%clk
0:00:04.7]} 69... Ke5 {[%clk 0:00:17]} 70. Re3+ {[%clk 0:00:04.9]} 70... Kf4
{[%clk 0:00:17.3]} 71. Re1 {[%clk 0:00:02.6]} 71... Rxg4+ {[%clk 0:00:17.4]} 72.
Kh5 {[%clk 0:00:03.1]} 72... Rg2 {[%clk 0:00:16]} 0-1

[Event "*** Titled Tuesday Blitz"]
[Site "Chess.com"]
[Date "2021.04.20"]
[Round "10"]
[White "gmpeter008"]
[Black "NateSolon"]
[Result "1-0"]
[WhiteElo "2511"]
[BlackElo "2644"]
[TimeControl "180+1"]
[EndTime "11:56:44 PDT"]
[Termination "gmpeter008 won on time"]

1. d4 {[%clk 0:03:00.9]} 1... Nf6 {[%clk 0:03:00]} 2. Bf4 {[%clk 0:02:52.2]}
2... d5 {[%clk 0:02:59.2]} 3. e3 {[%clk 0:02:52.2]} 3... e6 {[%clk 0:02:59.4]}
4. Nf3 {[%clk 0:02:52.4]} 4... Bd6 {[%clk 0:02:59.5]} 5. Nbd2 {[%clk 0:02:52.8]}
5... O-O {[%clk 0:02:58.7]} 6. c3 {[%clk 0:02:52.2]} 6... c5 {[%clk 0:02:54.8]}
7. Bd3 {[%clk 0:02:51.9]} 7... Bxf4 {[%clk 0:02:46.2]} 8. exf4 {[%clk
0:02:51.5]} 8... Qd6 {[%clk 0:02:39.6]} 9. g3 {[%clk 0:02:51.1]} 9... Nc6 {[%clk
0:02:39.7]} 10. O-O {[%clk 0:02:50.7]} 10... Bd7 {[%clk 0:02:36.3]} 11. Re1
{[%clk 0:02:48.1]} 11... Rab8 {[%clk 0:02:30.8]} 12. a3 {[%clk 0:02:41.8]} 12...
Rfc8 {[%clk 0:02:24.2]} 13. Qe2 {[%clk 0:02:36]} 13... a6 {[%clk 0:02:18.4]} 14.
dxc5 {[%clk 0:02:33.4]} 14... Qxc5 {[%clk 0:02:18.1]} 15. Nb3 {[%clk 0:02:34.1]}
15... Qd6 {[%clk 0:02:12.7]} 16. Nbd4 {[%clk 0:02:34.5]} 16... Na5 {[%clk
0:01:59.6]} 17. Ne5 {[%clk 0:02:34.1]} 17... g6 {[%clk 0:01:52.2]} 18. Rad1
{[%clk 0:02:31.5]} 18... Ba4 {[%clk 0:01:51.1]} 19. Rd2 {[%clk 0:02:26]} 19...
Nb3 {[%clk 0:01:43.9]} 20. Nxb3 {[%clk 0:02:25.3]} 20... Bxb3 {[%clk 0:01:44.8]}
21. Qe3 {[%clk 0:02:16.5]} 21... b5 {[%clk 0:01:38.6]} 22. Qa7 {[%clk
0:02:14.9]} 22... Rf8 {[%clk 0:01:25.4]} 23. Bf1 {[%clk 0:02:10.5]} 23... Qb6
{[%clk 0:01:23.6]} 24. Qe7 {[%clk 0:02:05.1]} 24... Ne4 {[%clk 0:01:20]} 25. Nd7
{[%clk 0:01:59.6]} 25... Qd8 {[%clk 0:01:14.2]} 26. Qxf8+ {[%clk 0:01:15.8]}
26... Qxf8 {[%clk 0:01:12.3]} 27. Rxe4 {[%clk 0:01:15.5]} 27... Qc8 {[%clk
0:00:59.2]} 28. Nxb8 {[%clk 0:01:01.9]} 28... dxe4 {[%clk 0:00:58.8]} 29. Nd7
{[%clk 0:01:02.4]} 29... Kg7 {[%clk 0:00:50.5]} 30. Ne5 {[%clk 0:00:59.2]} 30...
Bd5 {[%clk 0:00:46]} 31. Ng4 {[%clk 0:00:56.5]} 31... Qc5 {[%clk 0:00:41.6]} 32.
Ne3 {[%clk 0:00:56.7]} 32... Bc6 {[%clk 0:00:41.2]} 33. Rd4 {[%clk 0:00:56.1]}
33... e5 {[%clk 0:00:37.6]} 34. fxe5 {[%clk 0:00:52.9]} 34... Qxe5 {[%clk
0:00:38.5]} 35. Be2 {[%clk 0:00:53]} 35... h5 {[%clk 0:00:38.2]} 36. h4 {[%clk
0:00:51.1]} 36... Kh6 {[%clk 0:00:29.1]} 37. Kf1 {[%clk 0:00:45.6]} 37... Qe6
{[%clk 0:00:26.9]} 38. Ke1 {[%clk 0:00:35]} 38... Qa2 {[%clk 0:00:25]} 39. Rd2
{[%clk 0:00:33.8]} 39... Kg7 {[%clk 0:00:19.7]} 40. Kf1 {[%clk 0:00:29.9]} 40...
a5 {[%clk 0:00:19.4]} 41. Rd6 {[%clk 0:00:22.9]} 41... Bb7 {[%clk 0:00:15.4]}
42. Bxb5 {[%clk 0:00:20.5]} 42... Qxb2 {[%clk 0:00:14.4]} 43. Bc4 {[%clk
0:00:17]} 43... Bc8 {[%clk 0:00:03.4]} 44. Rc6 {[%clk 0:00:13.1]} 44... Bh3+
{[%clk 0:00:03.3]} 45. Kg1 {[%clk 0:00:13.4]} 45... Qxc3 {[%clk 0:00:02.1]} 46.
Rc7 {[%clk 0:00:04.7]} 46... Qe1+ {[%clk 0:00:02.4]} 47. Bf1 {[%clk 0:00:05]}
47... Bxf1 {[%clk 0:00:02.1]} 48. Nxf1 {[%clk 0:00:05.9]} 48... Qa1 {[%clk
0:00:02.1]} 49. Kg2 {[%clk 0:00:03.6]} 49... Qxa3 {[%clk 0:00:02.6]} 50. Ne3
{[%clk 0:00:04.1]} 50... Qd3 {[%clk 0:00:02.6]} 51. Ra7 {[%clk 0:00:03.5]} 51...
a4 {[%clk 0:00:03.2]} 52. Rxa4 {[%clk 0:00:03.7]} 52... Qb1 {[%clk 0:00:03.1]}
53. Ra7 {[%clk 0:00:03.9]} 53... Qb6 {[%clk 0:00:03.3]} 54. Rd7 {[%clk
0:00:04.1]} 54... Qe6 {[%clk 0:00:03.7]} 55. Rd1 {[%clk 0:00:05]} 55... Kh6
{[%clk 0:00:04.1]} 56. Kf1 {[%clk 0:00:05.5]} 56... Qa6+ {[%clk 0:00:03.7]} 57.
Kg1 {[%clk 0:00:05.7]} 57... Qa4 {[%clk 0:00:04.4]} 58. Kg2 {[%clk 0:00:06.1]}
58... Qa6 {[%clk 0:00:04.3]} 59. Re1 {[%clk 0:00:06.5]} 59... Qe6 {[%clk
0:00:04.9]} 60. Rd1 {[%clk 0:00:07.4]} 60... Qc6 {[%clk 0:00:04.8]} 61. Re1
{[%clk 0:00:07.7]} 61... Qe6 {[%clk 0:00:05.1]} 62. Rf1 {[%clk 0:00:08.2]} 62...
Qf6 {[%clk 0:00:05.5]} 63. Rd1 {[%clk 0:00:08.7]} 63... Qf3+ {[%clk 0:00:05.5]}
64. Kg1 {[%clk 0:00:07.9]} 64... Kg7 {[%clk 0:00:05.9]} 65. Rd5 {[%clk 0:00:08]}
65... Kh6 {[%clk 0:00:04]} 66. Rd1 {[%clk 0:00:07.2]} 66... f5 {[%clk
0:00:04.1]} 67. Rd6 {[%clk 0:00:04.9]} 67... f4 {[%clk 0:00:03.5]} 68. Rf6
{[%clk 0:00:04.2]} 1-0

[Event "*** Titled Tuesday Blitz"]
[Site "Chess.com"]
[Date "2021.04.20"]
[Round "10"]
[White "kubal123"]
[Black "mjray79"]
[Result "1/2-1/2"]
[WhiteElo "2267"]
[BlackElo "2435"]
[TimeControl "180+1"]
[EndTime "11:56:47 PDT"]
[Termination "Game drawn - insufficient material"]

1. Nf3 {[%clk 0:03:00.9]} 1... Nf6 {[%clk 0:03:00]} 2. g3 {[%clk 0:03:01.4]}
2... g6 {[%clk 0:03:00.9]} 3. Bg2 {[%clk 0:03:01.9]} 3... Bg7 {[%clk 0:03:01.8]}
4. O-O {[%clk 0:03:02.6]} 4... d6 {[%clk 0:03:02.5]} 5. d3 {[%clk 0:03:03.5]}
5... O-O {[%clk 0:03:02.9]} 6. e4 {[%clk 0:03:04.1]} 6... c5 {[%clk 0:03:02.1]}
7. Nbd2 {[%clk 0:03:04.7]} 7... Nc6 {[%clk 0:03:02.1]} 8. c3 {[%clk 0:03:01.3]}
8... Rb8 {[%clk 0:03:01.7]} 9. Re1 {[%clk 0:02:57.3]} 9... b5 {[%clk 0:03:01.8]}
10. a4 {[%clk 0:02:57.9]} 10... b4 {[%clk 0:03:01.3]} 11. Nc4 {[%clk 0:02:58.5]}
11... Ba6 {[%clk 0:02:55.4]} 12. e5 {[%clk 0:02:33.2]} 12... Nxe5 {[%clk
0:02:54.9]} 13. Nfxe5 {[%clk 0:02:34.1]} 13... dxe5 {[%clk 0:02:55.6]} 14. Nxe5
{[%clk 0:02:34.4]} 14... Bb7 {[%clk 0:02:52.4]} 15. Bxb7 {[%clk 0:02:21.4]}
15... Rxb7 {[%clk 0:02:53.3]} 16. Qf3 {[%clk 0:02:21.7]} 16... Qd5 {[%clk
0:02:35.6]} 17. Qxd5 {[%clk 0:02:17.8]} 17... Nxd5 {[%clk 0:02:36.5]} 18. c4
{[%clk 0:02:18.2]} 18... Nf6 {[%clk 0:02:36.3]} 19. Be3 {[%clk 0:02:16.3]} 19...
Rc8 {[%clk 0:02:33.2]} 20. Rad1 {[%clk 0:02:15.8]} 20... Nd7 {[%clk 0:02:31.8]}
21. Nxd7 {[%clk 0:01:57.3]} 21... Rxd7 {[%clk 0:02:32.7]} 22. b3 {[%clk
0:01:58]} 22... e6 {[%clk 0:02:29.3]} 23. Kf1 {[%clk 0:01:57.5]} 23... Bc3
{[%clk 0:02:27.2]} 24. Re2 {[%clk 0:01:57.1]} 24... Kf8 {[%clk 0:02:26.1]} 25.
Rc2 {[%clk 0:01:56.6]} 25... Ke7 {[%clk 0:02:25.5]} 26. Ke2 {[%clk 0:01:57.2]}
26... Rc6 {[%clk 0:02:19.6]} 27. h4 {[%clk 0:01:57.5]} 27... h5 {[%clk
0:02:18.8]} 28. Rcc1 {[%clk 0:01:55.2]} 28... Kd8 {[%clk 0:02:17.8]} 29. Rc2
{[%clk 0:01:55.3]} 29... Kc7 {[%clk 0:02:18]} 30. Bd2 {[%clk 0:01:55.7]} 30...
Bf6 {[%clk 0:02:15.4]} 31. Bf4+ {[%clk 0:01:55.5]} 31... Kb6 {[%clk 0:02:14]}
32. Be3 {[%clk 0:01:54]} 32... Rcd6 {[%clk 0:02:13.3]} 33. Bf4 {[%clk
0:01:47.2]} 33... e5 {[%clk 0:02:13.7]} 34. Be3 {[%clk 0:01:47.6]} 34... e4
{[%clk 0:02:14.1]} 35. Rcd2 {[%clk 0:01:40.9]} 35... Bc3 {[%clk 0:02:13.3]} 36.
dxe4 {[%clk 0:01:34.9]} 36... Bxd2 {[%clk 0:02:13.5]} 37. Rxd2 {[%clk
0:01:33.3]} 37... Rxd2+ {[%clk 0:02:13.4]} 38. Bxd2 {[%clk 0:01:34.2]} 38... Kc6
{[%clk 0:02:14.2]} 39. Be3 {[%clk 0:01:34.5]} 39... Kd6 {[%clk 0:02:11.8]} 40.
f3 {[%clk 0:01:35]} 40... Re7 {[%clk 0:02:00.3]} 41. Bf4+ {[%clk 0:01:33.8]}
41... Kc6 {[%clk 0:01:58.7]} 42. Be3 {[%clk 0:01:34.4]} 42... f5 {[%clk
0:01:59.1]} 43. exf5 {[%clk 0:01:33.6]} 43... gxf5 {[%clk 0:02:00]} 44. Kd3
{[%clk 0:01:33.3]} 44... Kd6 {[%clk 0:01:55.6]} 45. Bf4+ {[%clk 0:01:32.7]}
45... Ke6 {[%clk 0:01:55.4]} 46. Be3 {[%clk 0:01:31.4]} 46... Rg7 {[%clk
0:01:47.4]} 47. Bg5 {[%clk 0:01:24.7]} 47... Rd7+ {[%clk 0:01:45.8]} 48. Ke2
{[%clk 0:01:22.2]} 48... Ke5 {[%clk 0:01:43.3]} 49. Be3 {[%clk 0:01:20.5]} 49...
Rg7 {[%clk 0:01:35.1]} 50. Bf4+ {[%clk 0:01:14]} 50... Kd4 {[%clk 0:01:34.7]}
51. Kd2 {[%clk 0:01:08.5]} 51... Re7 {[%clk 0:01:31]} 52. Bg5 {[%clk 0:01:08.7]}
52... Re6 {[%clk 0:01:29.1]} 53. Bf4 {[%clk 0:01:02.3]} 53... Re7 {[%clk
0:01:05.8]} 54. Bg5 {[%clk 0:01:01.8]} 54... Re6 {[%clk 0:01:04.9]} 55. Bf4
{[%clk 0:01:01.7]} 55... Rg6 {[%clk 0:01:03.1]} 56. Be3+ {[%clk 0:00:59.6]}
56... Ke5 {[%clk 0:01:02.7]} 57. Bf4+ {[%clk 0:00:55.4]} 57... Ke6 {[%clk
0:01:00.5]} 58. Ke2 {[%clk 0:00:53.5]} 58... Kd7 {[%clk 0:00:59]} 59. Be5 {[%clk
0:00:51.2]} 59... Re6 {[%clk 0:00:56.8]} 60. f4 {[%clk 0:00:49.1]} 60... Rg6
{[%clk 0:00:56]} 61. Kf3 {[%clk 0:00:49.1]} 61... Ke6 {[%clk 0:00:56.9]} 62. Bb8
{[%clk 0:00:47.2]} 62... Rg7 {[%clk 0:00:56.2]} 63. Be5 {[%clk 0:00:46.6]} 63...
Rd7 {[%clk 0:00:56.3]} 64. Ke2 {[%clk 0:00:46.2]} 64... Rd8 {[%clk 0:00:49.7]}
65. Bc7 {[%clk 0:00:39]} 65... Rd4 {[%clk 0:00:48.2]} 66. Be5 {[%clk 0:00:37.6]}
66... Re4+ {[%clk 0:00:41.3]} 67. Kd2 {[%clk 0:00:38.1]} 67... Rxe5 {[%clk
0:00:29.9]} 68. fxe5 {[%clk 0:00:39]} 68... Kxe5 {[%clk 0:00:30.8]} 69. Ke3
{[%clk 0:00:39]} 69... a5 {[%clk 0:00:19.9]} 70. Kf3 {[%clk 0:00:30.6]} 70...
Kd4 {[%clk 0:00:20.8]} 71. Kf4 {[%clk 0:00:30.3]} 71... Kc3 {[%clk 0:00:21.1]}
72. Kxf5 {[%clk 0:00:30.9]} 72... Kxb3 {[%clk 0:00:21.6]} 73. g4 {[%clk
0:00:31.6]} 73... hxg4 {[%clk 0:00:19.9]} 74. Kxg4 {[%clk 0:00:32.5]} 74... Kxa4
{[%clk 0:00:12.3]} 75. h5 {[%clk 0:00:33.4]} 75... b3 {[%clk 0:00:12.7]} 76. h6
{[%clk 0:00:34.3]} 76... b2 {[%clk 0:00:13.5]} 77. h7 {[%clk 0:00:35.2]} 77...
b1=Q {[%clk 0:00:14.1]} 78. h8=Q {[%clk 0:00:36.1]} 78... Qe4+ {[%clk
0:00:13.8]} 79. Kg3 {[%clk 0:00:35.3]} 79... Qxc4 {[%clk 0:00:14.3]} 80. Qe8+
{[%clk 0:00:34.2]} 80... Qb5 {[%clk 0:00:13.7]} 81. Qe4+ {[%clk 0:00:34.1]}
81... c4 {[%clk 0:00:14.3]} 82. Kf2 {[%clk 0:00:28.4]} 82... Qb2+ {[%clk
0:00:14.2]} 83. Ke1 {[%clk 0:00:27.6]} 83... Qc3+ {[%clk 0:00:13.1]} 84. Kd1
{[%clk 0:00:27.1]} 84... Qd3+ {[%clk 0:00:13.1]} 85. Qxd3 {[%clk 0:00:25.9]}
85... cxd3 {[%clk 0:00:14]} 86. Kd2 {[%clk 0:00:26.8]} 86... Kb3 {[%clk
0:00:14.1]} 87. Kxd3 {[%clk 0:00:27.7]} 87... Kb2 {[%clk 0:00:14.7]} 88. Kd2
{[%clk 0:00:28.6]} 88... a4 {[%clk 0:00:15.6]} 89. Kd3 {[%clk 0:00:29.1]} 89...
a3 {[%clk 0:00:16.4]} 90. Kc4 {[%clk 0:00:30]} 90... a2 {[%clk 0:00:17.3]} 91.
Kc5 {[%clk 0:00:30.8]} 91... a1=N {[%clk 0:00:18.2]} 1/2-1/2

[Event "*** Titled Tuesday Blitz"]
[Site "Chess.com"]
[Date "2021.04.20"]
[Round "10"]
[White "Arystanner"]
[Black "moro182"]
[Result "1-0"]
[WhiteElo "2815"]
[BlackElo "2712"]
[TimeControl "180+1"]
[EndTime "11:56:52 PDT"]
[Termination "Arystanner won by resignation"]

1. e4 {[%clk 0:03:00.9]} 1... e5 {[%clk 0:02:59.4]} 2. Nf3 {[%clk 0:03:00.9]}
2... Nc6 {[%clk 0:02:59.9]} 3. Bb5 {[%clk 0:03:01.5]} 3... a6 {[%clk 0:02:59]}
4. Ba4 {[%clk 0:03:01.9]} 4... Nf6 {[%clk 0:02:58.1]} 5. d3 {[%clk 0:03:02.2]}
5... b5 {[%clk 0:02:58.3]} 6. Bb3 {[%clk 0:03:02.3]} 6... Bc5 {[%clk 0:02:58.9]}
7. Nc3 {[%clk 0:03:02.8]} 7... d6 {[%clk 0:02:52.9]} 8. Nd5 {[%clk 0:03:02.9]}
8... h6 {[%clk 0:02:52.3]} 9. c3 {[%clk 0:03:03.3]} 9... O-O {[%clk 0:02:48.9]}
10. Nxf6+ {[%clk 0:03:00.9]} 10... Qxf6 {[%clk 0:02:48.4]} 11. Bd5 {[%clk
0:03:01.2]} 11... Bd7 {[%clk 0:02:48]} 12. Rg1 {[%clk 0:03:01.5]} 12... Kh8
{[%clk 0:01:34.2]} 13. g4 {[%clk 0:03:00]} 13... Qg6 {[%clk 0:01:15.1]} 14. g5
{[%clk 0:02:48.6]} 14... Qh5 {[%clk 0:01:12.3]} 15. Rg3 {[%clk 0:02:02.7]} 15...
f5 {[%clk 0:01:05.5]} 16. gxh6 {[%clk 0:01:27.7]} 16... gxh6 {[%clk 0:01:04.3]}
17. exf5 {[%clk 0:01:25.2]} 17... Rxf5 {[%clk 0:01:05.2]} 18. Bd2 {[%clk
0:00:45.2]} 18... Raf8 {[%clk 0:01:03.2]} 19. Qe2 {[%clk 0:00:39.4]} 19... Ne7
{[%clk 0:00:53.6]} 20. Be4 {[%clk 0:00:39.7]} 20... R5f6 {[%clk 0:00:51.2]} 21.
d4 {[%clk 0:00:40.1]} 21... exd4 {[%clk 0:00:37.7]} 22. cxd4 {[%clk 0:00:41]}
22... Bb6 {[%clk 0:00:33.4]} 23. d5 {[%clk 0:00:32.6]} 23... Nxd5 {[%clk
0:00:28.9]} 24. O-O-O {[%clk 0:00:32.1]} 24... Nf4 {[%clk 0:00:24.7]} 25. Qf1
{[%clk 0:00:15.4]} 25... Qc5+ {[%clk 0:00:21.9]} 26. Kb1 {[%clk 0:00:15.8]}
26... Qxf2 {[%clk 0:00:22.1]} 27. Bc3 {[%clk 0:00:15]} 27... Qxf1 {[%clk
0:00:22]} 28. Rxf1 {[%clk 0:00:15.9]} 28... Ne2 {[%clk 0:00:19]} 29. Bxf6+
{[%clk 0:00:13.3]} 29... Rxf6 {[%clk 0:00:19]} 30. Rg6 {[%clk 0:00:08.5]} 30...
Rxg6 {[%clk 0:00:18.6]} 31. Bxg6 {[%clk 0:00:09.4]} 31... Kg7 {[%clk 0:00:16.6]}
32. Bc2 {[%clk 0:00:08.6]} 32... Bh3 {[%clk 0:00:15.3]} 33. Re1 {[%clk
0:00:07.9]} 33... Nf4 {[%clk 0:00:12.6]} 34. Nh4 {[%clk 0:00:07.6]} 34... Bf2
{[%clk 0:00:08.9]} 35. Re4 {[%clk 0:00:07.9]} 35... Bxh4 {[%clk 0:00:08.6]} 36.
Rxf4 {[%clk 0:00:08.2]} 36... Bg5 {[%clk 0:00:08.9]} 37. Rf3 {[%clk 0:00:08.1]}
37... Bd7 {[%clk 0:00:08.5]} 38. b3 {[%clk 0:00:06.7]} 38... Bg4 {[%clk
0:00:08]} 39. Rg3 {[%clk 0:00:07]} 39... h5 {[%clk 0:00:05.5]} 40. h3 {[%clk
0:00:07]} 40... Bf4 {[%clk 0:00:05.9]} 41. Rg2 {[%clk 0:00:06.5]} 41... Kf6
{[%clk 0:00:06.1]} 42. hxg4 {[%clk 0:00:06.9]} 42... h4 {[%clk 0:00:07]} 43. g5+
{[%clk 0:00:07.5]} 43... Bxg5 {[%clk 0:00:06.2]} 44. Rf2+ {[%clk 0:00:05.7]}
44... Ke6 {[%clk 0:00:05.3]} 45. Be4 {[%clk 0:00:05.3]} 45... Be3 {[%clk
0:00:03.8]} 46. Re2 {[%clk 0:00:05.2]} 46... Bf4 {[%clk 0:00:03.9]} 47. Kc2
{[%clk 0:00:05.6]} 47... Kf6 {[%clk 0:00:02.2]} 48. Kd3 {[%clk 0:00:06]} 48...
h3 {[%clk 0:00:02.4]} 49. Bh1 {[%clk 0:00:05.6]} 49... h2 {[%clk 0:00:02.7]} 50.
Ke4 {[%clk 0:00:06]} 50... Be5 {[%clk 0:00:02.4]} 51. Kd5 {[%clk 0:00:05.4]}
51... c5 {[%clk 0:00:02.8]} 52. Rf2+ {[%clk 0:00:04.1]} 52... Kg5 {[%clk
0:00:02.4]} 53. Ke4 {[%clk 0:00:04.1]} 53... Kg4 {[%clk 0:00:02.5]} 54. Rg2+
{[%clk 0:00:04.4]} 54... Kh3 {[%clk 0:00:02.5]} 55. Kf3 {[%clk 0:00:04.8]} 55...
b4 {[%clk 0:00:02.6]} 56. Rg8 {[%clk 0:00:04.1]} 56... Kh4 {[%clk 0:00:03]} 57.
Rg4+ {[%clk 0:00:04.3]} 57... Kh5 {[%clk 0:00:03]} 58. Rg8 {[%clk 0:00:05.2]}
58... Kh6 {[%clk 0:00:02.8]} 59. Ra8 {[%clk 0:00:05.4]} 59... Kg6 {[%clk
0:00:03]} 60. Rxa6 {[%clk 0:00:05.7]} 60... Kf5 {[%clk 0:00:03.9]} 61. a4 {[%clk
0:00:06.1]} 61... Ke6 {[%clk 0:00:04.8]} 62. a5 {[%clk 0:00:06.6]} 62... Kd5
{[%clk 0:00:05.1]} 63. Ra8 {[%clk 0:00:06.5]} 63... Kc6 {[%clk 0:00:06]} 64. a6
{[%clk 0:00:07.1]} 64... Kb6 {[%clk 0:00:06.3]} 65. Ke2 {[%clk 0:00:07.4]} 65...
c4 {[%clk 0:00:05.5]} 66. bxc4 {[%clk 0:00:07.2]} 66... b3 {[%clk 0:00:05.9]}
67. Kd3 {[%clk 0:00:07.8]} 67... b2 {[%clk 0:00:06]} 68. Kc2 {[%clk 0:00:08.2]}
68... Bd4 {[%clk 0:00:06.3]} 69. a7 {[%clk 0:00:06.4]} 69... Be5 {[%clk
0:00:06.2]} 70. c5+ {[%clk 0:00:06.1]} 70... dxc5 {[%clk 0:00:03.1]} 71. Re8
{[%clk 0:00:06.5]} 71... Kxa7 {[%clk 0:00:02.8]} 72. Rxe5 {[%clk 0:00:07.1]}
72... Kb6 {[%clk 0:00:03.7]} 73. Kxb2 {[%clk 0:00:07.5]} 1-0